bitfinex/quotes_SOLUSD_20240713
["timestamp","ask_amount","ask_price","bid_price","bid_amount"]
[1720848526306,11.64,139.04,138.99,11.64]
[1720848526812,20.0,139.05,139.0,1.43869594]
[1720848527112,20.0,139.05,139.01,11.64]
[1720848529896,11.64,139.04,138.97,45.0]
[1720848530095,11.64,139.04,138.99,11.64]
[1720848530294,16.6747,139.04,138.99,11.64]
[1720848531510,11.64,139.04,138.99,11.64]
[1720848532914,20.0,139.05,138.99,11.64]
[1720848533115,11.64,139.05,139.0,11.64]
[1720848536213,25.0338,139.06,139.0,11.64]
[1720848536431,11.64,139.05,139.0,11.64]
[1720848536725,36.6738,139.06,139.01,11.64]
[1720848537021,25.0338,139.06,139.01,11.64]
[1720848537198,36.6738,139.06,139.01,11.64]
[1720848537906,36.6738,139.06,138.97,45.0]
[1720848538101,36.6738,139.06,139.01,11.64]
[1720848538305,11.64,139.05,139.0,11.64]
[1720848540222,25.0338,139.06,139.01,11.64]
[1720848540431,5.0341,139.05,139.01,11.64]
[1720848541113,16.6741,139.05,139.0,11.64]
[1720848541500,16.6746,139.04,138.99,11.64]
[1720848542612,16.6746,139.04,138.97,6.4226]
[1720848542819,16.6746,139.04,138.99,11.64]
[1720848543206,11.64,139.03,138.98,11.64]
[1720848544422,11.64,139.04,138.99,11.64]
[1720848544611,11.64,139.04,138.97,1.43884025]
[1720848544801,11.64,139.04,138.99,11.64]
[1720848545202,16.6745,139.04,138.99,11.64]
[1720848545613,16.6745,139.04,138.97,1.43884025]
[1720848545820,16.6745,139.04,138.99,11.64]
[1720848547935,15.1567,139.05,139.0,11.64]
[1720848548137,15.1567,139.05,139.01,11.64]
[1720848548627,20.1908,139.05,138.97,1.43869375]
[1720848548837,31.8308,139.05,139.0,11.64]
[1720848549004,31.8308,139.05,138.99,11.64]
[1720848549607,15.1567,139.05,138.96,15.1907]
[1720848549829,11.64,139.04,138.97,1.43887235]
[1720848550006,11.64,139.03,138.98,11.64]
[1720848550416,16.6746,139.04,138.99,11.64]
[1720848553823,16.6746,139.04,138.97,1.43887235]
[1720848553824,5.0348,139.03,138.98,11.64]
[1720848554030,5.0348,139.03,138.99,11.64]
[1720848555330,5.0346,139.04,138.99,11.64]
[1720848555525,20.0,139.03,138.99,11.64]
[1720848556120,20.0,139.03,139.0,11.64]
[1720848558240,20.0,139.04,139.0,11.64]
[1720848558447,25.0345,139.04,139.0,11.64]
[1720848558946,5.0349,139.03,138.99,11.64]
[1720848566245,5.0341,139.05,139.01,11.64]
[1720848567623,21.1501,139.09,139.03,11.64]
[1720848567949,5.033,139.08,139.04,11.64]
[1720848568332,16.673,139.08,139.02,1.43857437]
[1720848568533,5.0335,139.07,139.03,11.64]
[1720848572754,5.0332,139.08,139.03,11.64]
[1720848572945,5.0332,139.08,139.04,11.64]
[1720848574258,16.6732,139.08,139.03,11.64]
[1720848581843,5.0334,139.07,139.01,1.43835153]
[1720848582043,5.0334,139.07,139.03,11.64]
[1720848582643,16.6732,139.08,139.03,11.64]
[1720848582845,11.64,139.06,138.98,6.6283]
[1720848583050,16.6739,139.06,139.01,11.64]
[1720848583351,11.64,139.06,139.01,11.64]
[1720848587361,5.0332,139.08,139.01,11.64]
[1720848587669,11.64,139.06,139.01,11.64]
[1720848588357,11.64,139.05,138.98,6.6283]
[1720848588560,11.64,139.04,138.97,15.438]
[1720848588864,11.64,139.04,138.99,11.64]
[1720848589064,11.64,139.04,138.94,6.1828]
[1720848589065,11.64,139.03,138.98,11.64]
[1720848589661,11.64,139.02,138.97,11.64]
[1720848590375,11.64,139.02,138.94,6.1828]
[1720848590566,11.64,139.01,138.96,11.64]
[1720848590752,11.14,139.01,138.96,11.64]
[1720848590962,11.64,139.01,138.96,11.64]
[1720848594567,11.64,139.02,138.97,11.64]
[1720848594954,11.64,139.03,138.98,11.64]
[1720848595154,20.9166,139.05,138.98,11.64]
[1720848595355,11.64,139.03,138.98,11.64]
[1720848595871,45.0,139.04,138.98,11.64]
[1720848596068,20.0,139.03,138.99,13.07893205]
[1720848596272,11.64,139.04,138.99,11.64]
[1720848596662,23.43353714,139.09,139.01,11.64]
[1720848596863,11.64,139.06,139.01,11.64]
[1720848597472,16.6738,139.06,139.01,11.64]
[1720848597871,18.84176173,139.09,139.01,11.64]
[1720848598064,11.64,139.07,139.02,1.43861467]
[1720848598256,11.64,139.07,139.03,11.64]
[1720848598654,16.6734,139.07,139.02,11.64]
[1720848602983,16.6738,139.06,139.02,11.64]
[1720848603280,5.0349,139.03,138.98,15.1762]
[1720848603586,16.6746,139.04,138.99,11.64]
[1720848603780,16.6742,139.05,139.0,11.64]
[1720848604184,5.0346,139.04,139.0,11.64]
[1720848604686,5.0346,139.04,138.99,11.64]
[1720848604886,16.6746,139.04,138.99,11.64]
[1720848606084,5.0342,139.05,138.99,11.64]
[1720848606273,16.6738,139.06,138.99,1.43877801]
[1720848606476,20.0,139.05,139.01,11.64]
[1720848607473,25.0341,139.05,139.01,11.64]
[1720848607892,36.6741,139.05,138.98,15.1762]
[1720848608190,36.6741,139.05,139.0,11.64]
[1720848609172,16.6746,139.04,138.99,11.64]
[1720848610302,36.6743,139.05,139.0,11.64]
[1720848610998,16.6748,139.04,138.99,11.64]
[1720848613689,11.64,139.02,138.95,21.5994]
[1720848613997,11.64,139.01,138.96,11.64]
[1720848614202,11.64,139.01,138.95,15.0026]
[1720848614377,11.64,139.01,138.96,11.64]
[1720848614880,11.64,139.01,138.95,15.0026]
[1720848615077,11.64,139.01,138.96,11.64]
[1720848616078,11.64,139.02,138.97,11.64]
[1720848617312,21.008,139.04,138.98,11.64]
[1720848617515,15.9734,139.04,138.98,11.64]
[1720848617711,27.6134,139.04,138.99,11.64]
[1720848618916,32.6479,139.04,138.99,11.64]
[1720848619396,16.6754,139.02,138.95,15.0026]
[1720848619600,11.64,139.01,138.96,11.64]
[1720848620324,16.6754,139.02,138.97,11.64]
[1720848631951,5.0349,139.03,138.97,11.64]
[1720848632254,16.6749,139.03,138.98,13.0789902]
[1720848632443,16.6749,139.03,138.98,11.64]
[1720848633441,15.9734,139.04,138.98,11.64]
[1720848633624,31.64,139.03,138.98,11.64]
[1720848634028,36.6749,139.03,138.98,11.64]
[1720848634450,5.0352,139.02,138.98,11.64]
[1720848635030,16.6752,139.02,138.97,11.64]
[1720848635859,16.6752,139.02,138.95,15.0026]
[1720848636155,5.0356,139.01,138.96,11.64]
[1720848636359,16.6756,139.01,138.96,11.64]
[1720848636745,5.0356,139.01,138.96,11.64]
[1720848637054,16.6753,139.02,138.96,11.64]
[1720848639958,16.6753,139.02,138.97,11.64]
[1720848641147,25.035,139.03,138.97,11.64]
[1720848641343,20.0,139.03,138.98,13.07898028]
[1720848641552,20.0,139.03,138.99,1.43888989]
[1720848641743,20.0,139.04,139.0,11.64]
[1720848643148,25.0345,139.04,139.0,11.64]
[1720848643542,5.0335,139.07,139.01,11.64]
[1720848643748,5.0338,139.06,139.01,11.64]
[1720848643943,16.6738,139.06,139.01,11.64]
[1720848645166,5.0341,139.05,139.01,11.64]
[1720848646044,5.0347,139.04,138.99,15.0087]
[1720848646244,16.6747,139.04,138.99,15.0087]
[1720848646445,16.6747,139.04,138.99,26.6487]
[1720848648577,11.64,139.04,138.99,26.6487]
[1720848649072,11.64,139.04,138.99,15.0087]
[1720848649261,11.64,139.04,138.99,26.6487]
[1720848649569,22.7894,139.08,139.0,13.07871913]
[1720848649777,16.6739,139.06,139.0,13.07871913]
[1720848649984,11.64,139.05,138.99,15.0087]
[1720848650151,16.6742,139.05,138.99,26.6487]
[1720848650847,11.64,139.05,139.0,13.07869152]
[1720848651056,11.64,139.05,138.99,15.0087]
[1720848651262,16.6742,139.05,139.0,11.64]
[1720848651480,16.6742,139.05,138.99,26.6487]
[1720848652262,11.64,139.05,138.99,26.6487]
[1720848652457,11.64,139.05,139.0,13.07869738]
[1720848652870,11.64,139.05,139.0,11.64]
[1720848653049,5.0336,139.07,138.99,16.44736779]
[1720848653255,31.64,139.06,139.01,11.64]
[1720848653552,11.64,139.05,139.0,11.64]
[1720848653751,36.6738,139.06,139.0,1.43867732]
[1720848654057,31.64,139.06,139.01,11.64]
[1720848654270,20.0,139.06,138.99,15.0087]
[1720848654472,31.64,139.06,139.01,11.64]
[1720848655281,20.0,139.06,139.01,11.64]
[1720848655478,31.64,139.06,139.01,11.64]
[1720848656983,20.0,139.06,139.0,1.43849983]
[1720848657285,20.0,139.06,139.02,11.64]
[1720848658356,25.0338,139.06,139.02,11.64]
[1720848658979,11.64,139.08,139.03,11.64]
[1720848659980,16.6735,139.07,139.0,6.1149]
[1720848660285,16.6735,139.07,139.02,11.64]
[1720848663070,5.0335,139.07,139.02,11.64]
[1720848663375,16.6735,139.07,139.02,11.64]
[1720848663763,11.64,139.07,139.02,11.64]
[1720848663958,5.0332,139.08,139.02,11.64]
[1720848664154,11.64,139.07,139.02,11.64]
[1720848664584,5.0332,139.08,139.02,11.64]
[1720848664781,11.64,139.07,139.02,11.64]
[1720848665878,16.6732,139.08,139.03,11.64]
[1720848666083,16.6732,139.08,139.0,6.1149]
[1720848666084,7.14500115,139.1,139.04,1.43836905]
[1720848666287,11.64,139.1,139.06,11.64]
[1720848666658,16.6723,139.1,139.06,11.64]
[1720848666856,5.0323,139.1,139.06,11.64]
[1720848667075,16.6723,139.1,139.06,11.64]
[1720848667582,5.0323,139.1,139.06,11.64]
[1720848667781,16.6723,139.1,139.06,11.64]
[1720848667959,5.0323,139.1,139.06,11.64]
[1720848671262,0.8711846,139.11,139.07,11.64]
[1720848672274,0.8711846,139.11,139.08,11.64]
[1720848672476,0.8711846,139.11,139.09,1.4377888]
[1720848672683,0.8711846,139.11,139.1,11.64]
[1720848675086,0.8711846,139.11,139.09,1.43760076]
[1720848675390,0.8711846,139.11,139.1,11.64]
[1720848676174,0.8711846,139.11,139.1,18.294]
[1720848676372,0.8711846,139.11,139.1,63.294]
[1720848684206,0.8711846,139.11,139.1,64.73131063]
[1720848691690,0.8711846,139.11,139.1,76.37131063]
[1720848692620,0.8711846,139.11,139.1,74.934]
[1720848692797,0.8711846,139.11,139.1,63.294]
[1720848693712,0.04274009,139.19,139.11,16.1664]
[1720848693902,0.04274009,139.19,139.17,11.64]
[1720848694619,0.04274009,139.19,139.12,47.99696005]
[1720848694802,0.04274009,139.19,139.13,45.0]
[1720848695008,0.04274009,139.19,139.14,1.43696514]
[1720848695205,0.04274009,139.19,139.15,1.43696514]
[1720848697502,0.04274009,139.19,139.14,1.43696254]
[1720848697814,0.04274009,139.19,139.16,11.64]
[1720848703123,0.04274009,139.19,139.15,1.43704435]
[1720848703316,0.04274009,139.19,139.16,11.64]
[1720848706434,0.04274009,139.19,139.17,1.43697024]
[1720848706637,0.04274009,139.19,139.17,13.07697024]
[1720848706809,0.04274009,139.19,139.17,11.64]
[1720848707634,0.04274009,139.19,139.16,11.64]
[1720848708336,11.68274009,139.19,139.11,16.1664]
[1720848708526,16.6697,139.18,139.13,11.64]
[1720848708738,11.64,139.18,139.13,11.64]
[1720848709042,16.6695,139.18,139.13,11.64]
[1720848709417,16.6694,139.18,139.13,11.64]
[1720848709630,11.64,139.18,139.13,11.64]
[1720848709935,11.64,139.18,139.14,1.43718833]
[1720848710144,11.68274009,139.19,139.14,13.07718833]
[1720848710360,11.68274009,139.19,139.14,11.64]
[1720848710520,16.71184009,139.19,139.14,11.64]
[1720848711218,5.0296,139.18,139.11,16.1664]
[1720848711629,5.0296,139.18,139.14,11.64]
[1720848712248,16.71184009,139.19,139.14,11.64]
[1720848714437,11.64,139.18,139.14,11.64]
[1720848714627,11.64,139.18,139.11,16.1664]
[1720848714832,11.64,139.18,139.13,11.64]
[1720848717127,16.6694,139.18,139.11,16.1664]
[1720848717332,11.64,139.17,139.12,11.64]
[1720848719447,11.64,139.16,139.07,22.6861]
[1720848719645,11.64,139.16,139.11,11.64]
[1720848719851,15.3399,139.17,139.12,11.64]
[1720848720035,26.9799,139.17,139.12,11.64]
[1720848720231,15.3399,139.17,139.13,11.64]
[1720848720838,15.3399,139.17,139.14,11.64]
[1720848721130,11.68274009,139.19,139.14,11.64]
[1720848721549,20.0,139.18,139.14,11.64]
[1720848723065,16.71184009,139.19,139.14,11.64]
[1720848723542,0.04274009,139.19,139.14,11.64]
[1720848723740,31.68274009,139.19,139.14,11.64]
[1720848723943,20.04274009,139.19,139.15,11.64]
[1720848724245,36.71184009,139.19,139.14,11.64]
[1720848724429,5.0298,139.17,139.07,22.6861]
[1720848724633,16.6698,139.17,139.12,11.64]
[1720848724853,11.64,139.17,139.12,11.64]
[1720848726052,16.6698,139.17,139.12,11.64]
[1720848726354,11.64,139.17,139.12,11.64]
[1720848726658,11.64,139.18,139.12,11.64]
[1720848726955,11.64,139.18,139.13,11.64]
[1720848727453,20.04274009,139.19,139.14,13.07736819]
[1720848727643,31.68274009,139.19,139.14,11.64]
[1720848728643,0.04274009,139.19,139.15,13.07720184]
[1720848728840,0.04274009,139.19,139.15,11.64]
[1720848729356,0.04274009,139.19,139.16,11.64]
[1720848729553,0.04274009,139.19,139.12,46.56]
[1720848729759,0.04274009,139.19,139.15,11.64]
[1720848731959,0.04274009,139.19,139.16,1.43706266]
[1720848732750,0.04274009,139.19,139.16,13.07706266]
[1720848733058,0.04274009,139.19,139.16,11.64]
[1720848733944,0.04274009,139.19,139.13,1.43697172]
[1720848734137,0.04274009,139.19,139.12,45.0]
[1720848734342,0.04274009,139.19,139.15,11.64]
[1720848734759,11.68274009,139.19,139.12,45.0]
[1720848734944,11.64,139.18,139.12,45.0]
[1720848735149,16.6696,139.18,139.13,11.64]
[1720848736366,11.64,139.18,139.13,11.64]
[1720848740458,0.04274009,139.19,139.13,11.64]
[1720848740666,11.64,139.18,139.13,11.64]
[1720848742359,11.64,139.18,139.14,1.4372167]
[1720848742540,11.68274009,139.19,139.14,13.0772167]
[1720848742742,11.68274009,139.19,139.14,11.64]
[1720848743348,11.68274009,139.19,139.12,1.43719841]
[1720848743547,0.04274009,139.19,139.15,11.64]
[1720848744369,0.04274009,139.19,139.16,13.07707988]
[1720848744552,0.04274009,139.19,139.16,11.64]
[1720848746267,0.04274009,139.19,139.17,11.64]
[1720848747358,0.04274009,139.19,139.18,1.43688087]
[1720848747562,0.04274009,139.19,139.18,13.07688087]
[1720848747868,0.04274009,139.19,139.18,11.64]
[1720848750363,0.04274009,139.19,139.16,11.64]
[1720848750564,0.04274009,139.19,139.17,13.07691681]
[1720848752584,0.04274009,139.19,139.18,11.64]
[1720848759082,0.04274009,139.19,139.18,56.64]
[1720848766181,0.04274009,139.19,139.18,72.2851]
[1720848766507,0.8711846,139.25,139.18,138.8451]
[1720848766716,0.8711846,139.25,139.24,11.64]
[1720848769388,0.8711846,139.25,139.24,56.64]
[1720848774318,0.8711846,139.25,139.21,6.0248]
[1720848774524,0.8711846,139.25,139.18,35.6451]
[1720848774912,0.8711846,139.25,139.24,11.64]
[1720848775300,0.8711846,139.25,139.2,46.56]
[1720848775301,0.8711846,139.25,139.18,15.6451]
[1720848775511,0.8711846,139.25,139.21,11.64]
[1720848776128,12.5111846,139.25,139.2,11.64]
[1720848776724,29.0760846,139.25,139.2,11.64]
[1720848776921,29.0760846,139.25,139.17,6.0248]
[1720848776922,34.1030846,139.25,139.17,6.0248]
[1720848777134,11.64,139.24,139.17,6.0248]
[1720848777432,11.64,139.24,139.19,11.64]
[1720848779016,17.4360846,139.25,139.2,13.07665369]
[1720848779231,29.0760846,139.25,139.2,11.64]
[1720848779608,29.0760846,139.25,139.17,6.0248]
[1720848779804,29.0760846,139.25,139.2,11.64]
[1720848780619,29.0760846,139.25,139.18,45.0]
[1720848780840,11.64,139.24,139.15,15.5046]
[1720848781022,22.4630846,139.25,139.15,15.5046]
[1720848781199,11.64,139.23,139.18,11.64]
[1720848782141,11.64,139.23,139.15,15.5046]
[1720848782341,11.64,139.23,139.18,11.64]
[1720848783415,11.64,139.2,139.11,15.463]
[1720848783646,11.64,139.2,139.15,11.64]
[1720848784146,28.2163,139.2,139.15,11.64]
[1720848784522,11.64,139.19,139.14,11.64]
[1720848786150,11.64,139.18,139.11,15.463]
[1720848786322,11.64,139.18,139.13,11.64]
[1720848786816,11.64,139.18,139.11,15.463]
[1720848787127,11.64,139.19,139.14,11.64]
[1720848788925,16.5763,139.2,139.15,13.07718798]
[1720848789131,16.5763,139.2,139.16,11.64]
[1720848789727,16.5763,139.2,139.17,13.07701686]
[1720848789927,16.5763,139.2,139.17,11.64]
[1720848792032,20.0,139.22,139.17,11.64]
[1720848792355,31.64,139.22,139.17,11.64]
[1720848793544,36.668,139.22,139.17,11.64]
[1720848793740,16.6685,139.21,139.16,11.64]
[1720848793953,11.64,139.2,139.15,11.64]
[1720848794459,11.64,139.18,139.13,1.43695151]
[1720848794667,11.64,139.18,139.13,13.07695151]
[1720848795054,11.64,139.19,139.14,11.64]
[1720848796736,16.6691,139.19,139.12,1.4371902]
[1720848796957,5.0288,139.2,139.14,11.64]
[1720848797163,11.64,139.19,139.14,11.64]
[1720848797368,16.6688,139.2,139.15,11.64]
[1720848798261,11.64,139.19,139.14,11.64]
[1720848801262,5.0288,139.2,139.14,11.64]
[1720848801575,11.64,139.19,139.14,11.64]
[1720848802186,11.64,139.19,139.13,1.43723596]
[1720848802357,11.64,139.18,139.13,11.64]
[1720848802765,11.64,139.19,139.14,11.64]
[1720848803085,11.14,139.19,139.14,11.64]
[1720848803290,16.1692,139.19,139.14,11.64]
[1720848803998,5.0292,139.19,139.14,11.64]
[1720848804285,16.6692,139.19,139.14,11.64]
[1720848804492,11.64,139.19,139.14,11.64]
[1720848805266,16.6688,139.2,139.15,13.0771436]
[1720848805477,20.0,139.19,139.15,13.0771436]
[1720848805681,20.0,139.19,139.15,11.64]
[1720848806203,31.64,139.19,139.14,11.64]
[1720848807474,31.64,139.19,139.12,45.0]
[1720848807475,36.6694,139.19,139.12,45.0]
[1720848807778,36.6694,139.19,139.14,11.64]
[1720848809679,5.0295,139.18,139.13,1.43719638]
[1720848809880,5.0295,139.18,139.14,11.64]
[1720848812094,36.6692,139.19,139.14,11.64]
[1720848812690,25.0292,139.19,139.14,11.64]
[1720848813205,16.6694,139.18,139.12,45.0]
[1720848813390,5.0294,139.18,139.14,11.64]
[1720848815398,36.6691,139.19,139.14,11.64]
[1720848816105,20.0,139.19,139.15,13.0771889]
[1720848817210,20.0,139.19,139.12,45.0]
[1720848817411,25.0291,139.19,139.15,11.64]
[1720848818085,36.6691,139.19,139.14,11.64]
[1720848818300,31.64,139.19,139.14,11.64]
[1720848819188,36.6693,139.19,139.14,11.64]
[1720848819607,36.6693,139.19,139.15,1.4371957]
[1720848820321,25.0293,139.19,139.15,13.0771957]
[1720848820496,25.0293,139.19,139.15,11.64]
[1720848820814,36.6693,139.19,139.14,11.64]
[1720848822022,16.6694,139.18,139.12,45.0]
[1720848822222,16.6694,139.18,139.13,11.64]
[1720848822400,5.0294,139.18,139.13,11.64]
[1720848822786,16.6698,139.17,139.12,45.0]
[1720848823125,16.6698,139.17,139.12,11.64]
[1720848823318,11.64,139.17,139.12,11.64]
[1720848824494,11.64,139.16,139.1,6.1516]
[1720848824701,11.64,139.16,139.11,11.64]
[1720848825110,11.64,139.16,139.08,16.6483]
[1720848825111,11.64,139.15,139.08,16.6483]
[1720848825296,11.64,139.14,139.09,11.64]
[1720848825609,11.64,139.13,139.05,16.6483]
[1720848825912,11.64,139.13,139.08,11.64]
[1720848826293,11.64,139.13,139.05,16.6483]
[1720848826494,11.64,139.13,139.08,11.64]
[1720848829208,11.64,139.12,139.05,16.6483]
[1720848829431,11.64,139.12,139.06,45.0]
[1720848829636,11.64,139.12,139.07,11.64]
[1720848830437,11.64,139.12,139.06,45.0]
[1720848830741,11.64,139.11,139.06,11.64]
[1720848831729,11.64,139.12,139.07,11.64]
[1720848835847,16.5995,139.14,139.07,11.64]
[1720848836148,11.64,139.12,139.07,11.64]
[1720848840329,11.64,139.12,139.05,45.0]
[1720848840330,11.64,139.13,139.08,13.07782377]
[1720848840849,11.64,139.13,139.08,11.64]
[1720848841349,11.64,139.13,139.09,1.43772828]
[1720848841650,16.5995,139.14,139.09,1.43772828]
[1720848841843,11.64,139.13,139.08,11.64]
[1720848842453,11.64,139.12,139.07,11.64]
[1720848844342,11.64,139.11,139.06,11.64]
[1720848845548,21.6305,139.14,139.07,1.43792798]
[1720848845750,11.64,139.12,139.08,1.4378706]
[1720848846263,11.64,139.12,139.05,45.0]
[1720848846440,11.64,139.12,139.06,13.07793281]
[1720848847150,11.64,139.12,139.07,11.64]
[1720848848364,21.6305,139.14,139.08,13.07787277]
[1720848848365,11.64,139.13,139.08,13.07787277]
[1720848849565,11.64,139.13,139.08,11.64]
[1720848851855,16.5995,139.14,139.08,11.64]
[1720848852057,11.64,139.13,139.08,11.64]
[1720848853068,11.64,139.15,139.1,11.64]
[1720848853448,26.0505,139.18,139.09,11.64]
[1720848853449,11.64,139.14,139.09,11.64]
[1720848853764,11.64,139.15,139.1,13.07774615]
[1720848853982,11.64,139.15,139.09,11.64]
[1720848854162,11.64,139.15,139.1,1.43759067]
[1720848854470,11.64,139.15,139.1,13.07759067]
[1720848855171,16.0505,139.18,139.1,13.07759067]
[1720848855471,20.0,139.17,139.1,13.07759067]
[1720848855666,11.64,139.15,139.1,13.07759067]
[1720848857368,20.0,139.17,139.11,11.64]
[1720848857559,11.64,139.16,139.11,11.64]
[1720848857976,20.0,139.15,139.11,11.64]
[1720848859171,20.0,139.15,139.09,1.43748333]
[1720848859377,20.0,139.15,139.11,11.64]
[1720848859670,11.64,139.16,139.11,11.64]
[1720848860370,11.64,139.15,139.1,11.64]
[1720848860952,11.64,139.13,139.08,6.5238]
[1720848861254,11.64,139.13,139.08,18.1638]
[1720848861454,11.64,139.13,139.09,1.4377818]
[1720848862366,11.64,139.14,139.09,13.0777818]
[1720848862783,11.64,139.14,139.09,1.4377818]
[1720848863154,26.0505,139.18,139.09,13.0777818]
[1720848863367,11.64,139.14,139.09,13.0777818]
[1720848865084,11.64,139.15,139.1,11.64]
[1720848866286,11.64,139.14,139.09,11.64]
[1720848868066,11.64,139.13,139.08,6.5238]
[1720848868268,11.64,139.11,139.06,28.0751]
[1720848871884,17.50357093,139.16,139.06,29.51308664]
[1720848872090,11.64,139.12,139.07,11.64]
[1720848872679,65.0,139.15,139.08,1.43788538]
[1720848872974,11.64,139.13,139.08,13.07788538]
[1720848873170,11.64,139.14,139.09,11.64]
[1720848873376,20.0,139.13,139.09,11.64]
[1720848874884,11.64,139.14,139.09,11.64]
[1720848876185,11.64,139.15,139.1,13.07774478]
[1720848876386,16.0505,139.18,139.1,13.07774478]
[1720848876689,11.64,139.15,139.1,13.07774478]
[1720848885494,11.64,139.15,139.11,11.64]
[1720848886009,10.38691413,139.19,139.11,27.6228]
[1720848886297,11.64,139.15,139.11,27.6228]
[1720848889793,11.64,139.16,139.11,27.6228]
[1720848892789,11.64,139.15,139.11,15.9828]
[1720848902112,11.64,139.14,139.11,15.9828]
[1720848902605,10.0,139.18,139.11,15.9828]
[1720848902799,11.64,139.14,139.11,15.9828]
[1720848903116,11.64,139.15,139.11,15.9828]
[1720848905126,45.0,139.17,139.11,15.9828]
[1720848905418,11.64,139.14,139.11,15.9828]
[1720848910023,11.64,139.15,139.11,15.9828]
[1720848911322,11.64,139.12,139.08,16.1201]
[1720848911612,11.64,139.11,139.08,16.1201]
[1720848911809,11.64,139.1,139.08,16.1201]
[1720848912609,11.64,139.09,139.06,6.5429]
[1720848913302,11.64,139.08,139.06,6.5429]
[1720848914129,11.64,139.09,139.06,6.5429]
[1720848915517,11.64,139.09,139.04,27.7601]
[1720848915718,11.64,139.07,139.04,16.1201]
[1720848920007,11.64,139.06,139.04,16.1201]
[1720848922332,11.64,139.05,139.04,16.1201]
[1720848922629,11.64,139.05,139.01,15.1205]
[1720848922815,11.64,139.04,139.01,15.1205]
[1720848924023,11.64,139.04,139.0,6.5971]
[1720848924926,11.64,139.04,139.0,8.03579368]
[1720848925529,11.64,139.04,139.0,6.5971]
[1720848926335,10.0,139.09,139.0,8.0358824]
[1720848926517,11.64,139.05,139.0,19.6758824]
[1720848927011,11.64,139.04,139.0,6.5971]
[1720848927525,10.0,139.07,139.0,6.5971]
[1720848927706,11.64,139.03,139.0,6.5971]
[1720848927906,11.64,139.02,139.0,6.5971]
[1720848928314,11.64,139.03,139.0,6.5971]
[1720848930919,11.64,139.02,138.99,15.1205]
[1720848931225,11.64,139.01,138.99,15.1205]
[1720848931613,10.0,139.07,138.99,15.1205]
[1720848931814,11.64,139.01,138.99,15.1205]
[1720848932333,11.64,139.02,138.99,15.1205]
[1720848933637,11.64,139.01,138.99,15.1205]
[1720848935040,11.64,139.0,138.97,6.5971]
[1720848935214,11.64,139.04,138.97,6.5971]
[1720848935415,11.64,138.99,138.96,15.1205]
[1720848936617,30.0,139.03,138.96,15.1205]
[1720848936822,11.64,139.0,138.96,15.1205]
[1720848937949,20.0,139.03,138.96,26.7605]
[1720848938119,11.64,139.01,138.96,26.7605]
[1720848942945,11.64,139.0,138.96,15.1205]